Cogmind - Beta 14 @@@ ROGUE MODE // 2025.03.04 @ 19:21:27 Player: UberDoot Result: Destroyed by D-53 Grenadier with Mini Grenade Launcher Performance ------------- Evolutions (1) 500 Regions Visited (3) 600 Robots Destroyed (47) 235 Value Destroyed (968) 968 Prototype IDs (4) 80 Alien Tech Used (0) 0 Bonus (24) 24 TOTAL SCORE: 2407 Bonus ------- High Alert Combat Kills 38 Friendly Fire -14 Cogmind --------- Core Integrity 0/400 Matter 255/300 Energy 80/100 System Corruption 1% Temperature Cool (0) Movement Rolling (200) Ox8 Location -9/Mines Parts ------- > --- POWER (1) -------- (None) > --- PROPULSION (3) --- Wheel > --- UTILITY (3) ------ Cooling System (fused) Huge Storage Unit > --- WEAPON (2) ------- (None) > --- INVENTORY (25) --- Cooled Ion Engine Light Treads Light Treads Cooling System Cooling System Large Storage Unit High-capacity Storage Unit High-capacity Matter Pod (200) Improved Terrain Scanner Seismic Detector Salvage Targeting Computer Improved Targeting Computer Medium Armor Plating Medium Armor Plating Improved EM Shotgun Improved EM Shotgun Spread Laser Spread Laser Spread Laser Improved Assault Rifle Improved Assault Rifle Improved Light Cannon Plasma Cutter Hammer Peak State ------------ > --- POWER ------------ Cooled Ion Engine > --- PROPULSION ------- Light Treads Light Treads Compact Wheel > --- UTILITY ---------- Cooling System Huge Storage Unit Seismic Detector > --- WEAPON ----------- Improved Assault Rifle Improved Assault Rifle > --- INVENTORY -------- Cooled Ion Engine Light Treads Light Treads Wheel Wheel Cooling System Cooling System Large Storage Unit Huge Storage Unit High-capacity Matter Pod Signal Interpreter Improved Terrain Scanner Salvage Targeting Computer Spread Laser Spread Laser Spread Laser Spread Laser Shotgun Shotgun Minigun Minigun Minigun Datajack Plasma Cutter Hammer [Rating: 20] Favorites ----------- Power Cooled Ion Engine Engine Cooled Ion Engine Propulsion Light Treads Treads Light Treads Wheel Compact Wheel Utility Huge Storage Unit Device Cooling System Storage Huge Storage Unit Protection Light Armor Plating Weapon Improved EM Shotgun Energy Gun Improved EM Shotgun Energy Cannon Beam Cannon Ballistic Gun Assault Rifle Ballistic Cannon Light Cannon Launcher Mini Grenade Launcher Build | -11 -10 -9 -9 ------- Run | Yrd Mat Mat Min Slots Evolved 2 | . . 2 . Power . | . . . . Propulsion 1 | . . 1 . Utility 1 | . . 1 . Weapon . | . . . . Parts Attached 39 | 7 12 17 3 Power 3 | 1 . 2 . Engine 3 | 1 . 2 . Core . | . . . . Reactor . | . . . . Propulsion 12 | 2 2 6 2 Treads 9 | 2 . 6 1 Leg . | . . . . Wheel 3 | . 2 . 1 Hover . | . . . . Flight . | . . . . Utility 11 | 2 5 4 . Device 7 | 1 4 2 . Storage 2 | 1 1 . . Processor . | . . . . Hackware . | . . . . Protection 2 | . . 2 . Artifact . | . . . . Weapon 13 | 2 5 5 1 Energy Gun 5 | 1 2 2 . Energy Cannon 1 | . 1 . . Ballistic Gun 4 | 1 . 3 . Ballistic Cannon 2 | . 2 . . Launcher 1 | . . . 1 Special Weapon . | . . . . Impact Weapon . | . . . . Slashing Weapon . | . . . . Piercing Weapon . | . . . . Special Melee Weapon . | . . . . Unidentified Prototypes 2 | . . 2 . Parts Lost 7 | . 1 1 5 Power 1 | . . . 1 Propulsion 2 | . . . 2 Utility 1 | . . . 1 Weapon 3 | . 1 1 1 Highest Loss Streak 5 | . 1 1 5 To Critical Strikes . | . . . . Average Slot Usage (%) 99 | . 99 99 97 Engine 12 | . 14 11 11 Treads 19 | . 15 22 21 Wheel 11 | . 12 11 11 Device 15 | . 14 17 11 Storage 12 | . 14 11 11 Protection 3 | . . 4 10 Energy Gun 12 | . 12 8 20 Energy Cannon 1 | . 1 3 . Ballistic Gun 4 | . 4 4 . Ballistic Cannon 5 | . 9 5 . Peak Build Rating 20 | 7 12 20 20 Average Rating 15 | 5 10 18 19 On Entrance 9 | . 7 11 20 Naked Turns . | . . . . Heaviest Build 99 | 15 93 99 99 Greatest Support 40 | 40 40 40 16 Greatest Overweight (x) 9 | . 9 6 6 Average Overweight (x) 5 | . 6 5 5 Largest Inventory Capacity 25 | 8 25 25 25 Average Capacity 23 | 7 23 25 25 Most Carried 25 | 5 25 25 25 Average Carried 22 | 2 21 24 24 Final Capacity 25 | 8 25 25 25 Final Carried 25 | 5 25 25 24 Class Distribution -------------------- 100% | Mutant Dominant Class ---------------- Mutant | -10/Materials Mutant | -9/Materials Mutant | -9/Mines Resources | -11 -10 -9 -9 ----------- Run | Yrd Mat Mat Min Matter Collected 1236 | 288 339 599 10 Remotely . | . . . . Salvage Created 1409 | 109 355 834 111 Parts 107 | 7 28 66 6 Haulers Intercepted 3 | . 1 2 . Recyclers Shooed . | . . . . Parts Field Recycled . | . . . . Retrieved Matter . | . . . . Parts Self-Destructed . | . . . . Prevented . | . . . . Kills | -11 -10 -9 -9 ------- Run | Yrd Mat Mat Min Combat Hostiles Destroyed 49 | . 11 24 14 Guns 20 | . 4 15 1 Cannons 15 | . 7 8 . AOE 13 | . . . 13 Classes Destroyed 9 | 2 5 1 1 Worker 2 | . 1 1 . Tunneler 2 | 2 . . . Hauler 3 | . 1 2 . Recycler 1 | 1 . . . Watcher 3 | . 3 . . Swarmer 19 | . 6 13 . Grunt 9 | . 5 4 . Sentry 8 | . . 7 1 Assembled 13 | . . . 13 Best Kill Streak 13 | 3 3 4 13 Combat Bots Only 13 | . 3 3 13 Max Kills in Single Turn 4 | 1 2 2 4 Gunslinging 1 | . . 1 . Exploded 4 | . . . 4 Melee . | . . . . Uniques/NPCs Destroyed . | . . . . Combat | -11 -10 -9 -9 -------- Run | Yrd Mat Mat Min Hostile Shots Fired 173 | . 42 95 36 Missed 40 | . 8 25 7 Damage Taken 2011 | . 326 840 845 Core 475 | . 74 127 274 Absorbed by Shields . | . . . . Regen/Repaired (Parts) 27 | . . 27 . Core Remaining (%) 85 | 100 70 . . Volleys Fired 107 | 6 32 61 8 Largest 2 | 2 2 2 2 Hottest 100 | 70 100 95 90 Shots Fired 208 | 12 63 123 10 Gun 126 | 12 35 74 5 Cannon 77 | . 28 49 . Launcher 5 | . . . 5 Special . | . . . . Kinetic 116 | 6 31 79 . Thermal 49 | 6 32 11 . Explosive 5 | . . . 5 Electromagnetic 38 | . . 33 5 Robot Hit Streak 17 | 5 5 17 3 Robot Miss Streak 5 | 3 5 5 1 Penetration Max . | . . . . Secondary Targets 1 | . . 1 . Max Gunslinging Chain 1 | . . 1 . Shots Hit Robots 127 | 6 35 81 5 Core Hits 86 | 4 19 37 26 Critical Kills . | . . . . Critical Parts Destroyed . | . . . . Critical Strikes 2 | 1 . 1 . Burn 1 | 1 . . . Blast 1 | . . 1 . Melee Attacks . | . . . . Impact . | . . . . Slashing . | . . . . Piercing . | . . . . Sneak Attacks . | . . . . Combat Hostiles . | . . . . Follow-up Attacks . | . . . . Damage Inflicted 3007 | 77 578 1404 948 Guns 1309 | 77 308 849 75 Cannons 779 | . 270 509 . Explosions 913 | . . 40 873 Melee . | . . . . Ramming 6 | . . 6 . Kinetic 1201 | 29 281 891 . Thermal 442 | 48 297 97 . Explosive 873 | . . . 873 Electromagnetic 485 | . . 410 75 Impact . | . . . . Slashing . | . . . . Piercing . | . . . . Highest Corruption 1 | . . 1 1 Average Corruption 1 | . . 1 1 Corruption Purged . | . . . . Corruption Blocked . | . . . . Effects 14 | . . 12 2 Message Errors 2 | . . 1 1 Matter Fused 5 | . . 5 . Energy Discharges 1 | . . 1 . Parts Fused 2 | . . 1 1 Data Loss (minor) 1 | . . 1 . Data Loss (major) 1 | . . 1 . Misfires 1 | . . 1 . Alerts 1 | . . 1 . Overload Shots . | . . . . Overflow Damage 37 | . . 2 35 Projectiles 2 | . . 2 . Explosions 35 | . . . 35 Melee . | . . . . Knockbacks 7 | . 2 5 . Impact . | . . . . Kinetic 6 | . 2 4 . Secondary 1 | . . 1 . Self-Inflicted Damage 130 | . . 35 95 Shots 3 | . . 1 2 Rammed 2 | . . 2 . Targets Rammed 2 | . . 2 . Kicked . | . . . . Crushed . | . . . . Highest Temperature 258 | 27 258 10 . Average Temperature 72 | 14 84 10 . Received Heat Transfer 439 | . 105 294 40 Effects 2 | . 2 . . Energy Bleed 1 | . 1 . . Interference 1 | . 1 . . Siege Activations . | . . . . Robots Corrupted 1 | . . 1 . Combat Hostiles 1 | . . 1 . Parts Fried 5 | . . 5 . Impact Corruptions . | . . . . Robots Melted . | . . . . Combat Hostiles . | . . . . Parts Melted 3 | 1 2 . . Heat Transferred 1086 | 222 703 161 . Parts Sabotaged . | . . . . Parts Stolen . | . . . . Parts Stripped . | . . . . Power Chain Reactions 1 | . . 1 . Alert | -11 -10 -9 -9 ------- Run | Yrd Mat Mat Min Peak Influence 518 | 15 305 518 189 Initial 169 | . 9 34 169 Average 168 | 5 121 222 141 Maximum Alert Level 2 | . 1 2 . Low Security (%) 72 | 100 89 50 100 Level 1 19 | . 10 33 . Level 2 7 | . . 16 . Level 3 . | . . . . Level 4 . | . . . . Level 5 . | . . . . High Security . | . . . . Max Security . | . . . . Squads Dispatched 1 | . . 1 . Investigation . | . . . . Extermination . | . . . . Reinforcement 1 | . . 1 . Assault . | . . . . Garrison . | . . . . Intercept . | . . . . Searches Triggered . | . . . . Construction Impeded . | . . . . Haulers Reinforced . | . . . . Active Scanning Responses . | . . . . Cargo Convoy Interrupts . | . . . . Stealth | -11 -10 -9 -9 --------- Run | Yrd Mat Mat Min Distress Signals . | . . . . Communications Jammed . | . . . . Distress Signals . | . . . . Times Spotted 77 | . 18 36 23 Peak Tracking Total 14 | . 4 6 14 Tactical Retreats 7 | . 2 4 1 Traps | -11 -10 -9 -9 ------- Run | Yrd Mat Mat Min Traps Triggered 1 | . . 1 . Indirectly . | . . . . Trap Hack Attempts . | . . . . Triggered . | . . . . Disarmed . | . . . . Reprogrammed . | . . . . Reused . | . . . . Traps Extracted . | . . . . Installed . | . . . . Triggered . | . . . . Machines | -11 -10 -9 -9 ---------- Run | Yrd Mat Mat Min Machines Disabled 3 | . . 2 1 Max in Single Turn 1 | . . 1 1 Machines Repaired . | . . . . Machines Dismantled . | . . . . Machines Sabotaged . | . . . . Overloaded Fab Kills . | . . . . Hacking | -11 -10 -9 -9 --------- Run | Yrd Mat Mat Min Machines Accessed 12 | . 7 5 . Terminals 9 | . 5 4 . Fabricators . | . . . . Repair Stations 1 | . . 1 . Recycling Units 2 | . 2 . . Scanalyzers . | . . . . Garrison Access . | . . . . Total Hacks 32 | . 19 13 . Successful 16 | . 7 9 . Failed 16 | . 12 4 . Catastrophic 1 | . . 1 . Database Lockouts . | . . . . Manual 18 | . 11 7 . Terminals 26 | . 15 11 . Fabricators . | . . . . Repair Stations 2 | . . 2 . Recycling Units 4 | . 4 . . Scanalyzers . | . . . . Garrison Access . | . . . . Terminal Hacks 7 | . 3 4 . Part Schematic 1 | . 1 . . Robot Analysis 1 | . . 1 . Prototype ID Bank 1 | . 1 . . Branch Access Points 1 | . . 1 . Locate Traps 2 | . 1 1 . Hauler Manifests 1 | . . 1 . Fabricator Hacks . | . . . . Repair Station Hacks 2 | . . 2 . Scan Component 1 | . . 1 . Repair 1 | . . 1 . Recycling Unit Hacks 2 | . 2 . . Retrieve Components 2 | . 2 . . Scanalyzer . | . . . . Garrison Access Hacks . | . . . . Unauthorized Hacks 5 | . 2 3 . Terminals 5 | . 2 3 . Botnet 5 | . 2 3 . Fabricators . | . . . . Repair Stations . | . . . . Recycling Units . | . . . . Scanalyzers . | . . . . Garrison Access . | . . . . Data Cores Recovered . | . . . . Used . | . . . . Hacking Detections 11 | . 7 4 . Full Trace Events . | . . . . Feedback Events . | . . . . Feedback Blocked . | . . . . Robot Schematics Acquired . | . . . . Robots Built . | . . . . Authchips . | . . . . Time . | . . . . Total Robot Build Rating . | . . . . Part Schematics Acquired 1 | . 1 . . Parts Built . | . . . . Authchips . | . . . . Time . | . . . . Total Part Build Rating . | . . . . Parts Repaired 1 | . . 1 . Time 32 | . . 32 . Parts Recycled . | . . . . Recycled Matter . | . . . . Retrieved Matter . | . . . . Retrieved Components 10 | . 10 . . Parts Scanalyzed . | . . . . Part Schematics Acquired . | . . . . Parts Damaged . | . . . . Bothacking | -11 -10 -9 -9 ------------ Run | Yrd Mat Mat Min Used RIF Installer . | . . . . Robots Hacked . | . . . . Non-combat . | . . . . Combat . | . . . . Robot Hacks Applied . | . . . . Relay Couplers Released . | . . . . Fabnet Peak Effective % . | . . . . Robots Rewired . | . . . . Allies Hacked . | . . . . Hacks Repelled . | . . . . Allies | -11 -10 -9 -9 -------- Run | Yrd Mat Mat Min Total Allies . | . . . . Largest Group . | . . . . Highest-Rated Group . | . . . . Highest-Rated Ally . | . . . . Total Orders . | . . . . Ally Attacks . | . . . . Total Damage . | . . . . Kills . | . . . . Allies Corrupted . | . . . . Allies Melted . | . . . . Intel | -11 -10 -9 -9 ------- Run | Yrd Mat Mat Min Robot Analysis Total 1 | . . 1 . Derelict Logs Recovered 1 | . . . 1 Drone Launches . | . . . . Drone Recoveries . | . . . . Exploration | -11 -10 -9 -9 ------------- Run | Yrd Mat Mat Min Turns Passed 3485 | 127 1203 1652 503 Spaces Moved 1548 | 59 534 710 245 Core 2 | 2 . . . Treads 110 | 57 52 1 . Legs . | . . . . Wheels 1436 | . 482 709 245 Hover . | . . . . Flight . | . . . . Fastest Speed 50 | 50 160 175 175 Average Speed 187 | 156 191 187 189 Slowest Speed 320 | 160 320 320 190 Overloaded Moves . | . . . . Propulsion Burnouts . | . . . . Robots Hopped . | . . . . Cave-ins Triggered . | . . . . Exploration Rate (%) 54 | 4 94 62 58 Regions Visited 3 Branch Regions 1 Pre-discovered Areas . | . . . . Known Exits Taken 1 | . . 1 . Unknown Exits Taken 2 | 1 1 . . Scrap Searched 2 | . . . 2 Spaces Dug . | . . . . Terrain Destroyed 38 | . . 2 36 Melee . | . . . . Projectile . | . . . . AOE 38 | . . 2 36 Terrain Rammed . | . . . . Walls Destroyed . | . . . . Machines Disabled . | . . . . Actions | -11 -10 -9 -9 --------- Run | Yrd Mat Mat Min Total 1937 | 78 658 923 278 Wait 131 | 2 37 86 6 Move 1545 | 58 533 709 245 Hop . | . . . . Pick Up 63 | 5 31 20 7 Fast Attach 14 | 7 1 6 . Attach 7 | . 2 4 1 Detach 2 | . 1 1 . Swap 18 | . 9 7 2 Drop 48 | . 12 27 9 Fire 107 | 6 32 61 8 Melee . | . . . . Ram 1 | . . 1 . Kick . | . . . . Crush 1 | . . 1 . Escape Stasis . | . . . . Rewire . | . . . . Trap . | . . . . Miscellaneous . | . . . . Route ------- -11/Scrapyard -10/Materials (discovered 4 exits: *Mat x3 / [*Min]) -9/Materials (discovered 4 exits: [*Mat x2] / *Min x2) -9/Mines History --------- Turn | Location | Event 6 | -11/Scrapyard | Discovered new exit (range 15) 128 | -11/Scrapyard | Entered Materials 305 | -10/Materials | Build established: Mutant 513 | -10/Materials | Discovered new exit (range 10) 643 | -10/Materials | Discovered new exit (range 6) 955 | -10/Materials | Discovered new exit (range 15) 1086 | -10/Materials | Discovered new exit (range 16) 1331 | -10/Materials | Entered another Materials area 1331 | -9/Materials | Evolved 2 slots: Propulsion x1, Utility x1 1447 | -9/Materials | Identified exit to Mines 2228 | -9/Materials | Discovered new exit (range 4) 2463 | -9/Materials | Repaired Cooling System 2593 | -9/Materials | Discovered new exit (range 13) 2983 | -9/Materials | Entered Mines 3067 | -9/Mines | Learned Materials trap positions 3208 | -9/Mines | Joined a pair of Derelicts in attacking an 0b10 outpost 3441 | -9/Mines | Assembled infested the area 3446 | -9/Mines | Assisted by a Guerilla fighting off Assembled 3467 | -9/Mines | Core integrity fell below 50% 3485 | -9/Mines | Core integrity fell below 20% 3486 | -9/Mines | Destroyed by D-53 Grenadier with Mini Grenade Launcher Last Messages --------------- 03467_ as-67934 destroyed. 03467_ as-11173 destroyed. 03467_ as-56849 destroyed. 03468_ Lgt. Treads severed. 03469_ as-50934 destroyed. 03469_ as-08145 destroyed. 03469_ Destroyed Asb. Blade. 03472_ C-30 ARC bursts open, deploying its payload. 03472_ D-53 Grenadier unfolds itself. 03473_ K-01 Serf collects debris. 03474_ The unstable cave ceiling collapses. 03474_ as-93246 destroyed. 03474_ as-40621 destroyed. 03475_ Dropped Mni. Grenade Launcher. 03477_ The unstable cave ceiling collapses. 03480_ as-17367 destroyed. 03482_ Cld. Ion Engine destroyed. 03483_ The unstable cave ceiling collapses. 03484_ Com. Wheel destroyed. 03486_ The unstable cave ceiling collapses. Map ----- +----------------------------------------------------+ | ####???????## ##?## ##?????? | | ????????????# ##???## ## ### #?????? | | ??????????### #?????############?# #?????? | | ??????##### #??????????????????# #?????? | | ?????##"%## #??????????????????# ##?????? | | ?????# " # #??????????????????# ##?????? | | ?#???#! =+ #??????????????????## #####?? | | #???#[//%+ #???????????????????## ##? | | #???#"" *#! #????????????????????# #? | | #???##" ## #????????????????????# #? | | ####?####### #????????????????????# ## ##? | | #???????# ####????????????????# ##?###?? | | #???????# "% #???############## ##?????? | | #???????# #???# ###???? | | #????????# #???# ########### ##??? | | #?????????### ##### #?????????# #??? | | """ #???????????# #?????????## #??? | | """ #???????????# #######??????????## ##??? | | """ #???????????# ##????????????????## ##???? | | #??????????## ####??????####?????# ##????? | | """ #?????????## ####### ##????# ##????? | | """ ?????????## d #????# #????? | | ""???????????# #????## ##????? | | ????????????## d #??????###?????? | | #???????????## #???????????????? | | ????????????# @ #????????????????? | | ????????????## #????????????????? | | ????????????# #????????????????? | | ???????????# #????????????????? | | ???????????# " = #????????????????? | | ???????????# " ]% ## #????????????????? | | ???????????## % ### #????????????????? | | ????????????## ?? ##????????????????? | | ?????????????# % ?? ###?????????????????? | | ?????????????# ## ?? ##???????????????????? | | ?????????????####?## ??##?????????????????????? | | ???????????????????###?????????????????????????? | | ???????????????????????????????????????????????? | | ???????????????????????????????????????????????? | | ???????????????????????????????????????????????? | | ???????????????????????????????????????????????? | | ???????????????????????????????????????????????? | | ???????????????????????????????????????????????? | | ???????????????????????????????????????????????? | | ???????????????????????????????????????????????? | | ???????????????????????????????????????????????? | | ???????????????????????????????????????????????? | | ???????????????????????????????????????????????? | | | | | +----------------------------------------------------+ Best States ------------- Heat Dissipation 50 Energy Generation 14 Energy Capacity 280 Matter Stores 300 Matter Capacity 300 Sight Range 16 Terrain Scan Density 10 Armor Coverage 150 Evasion (%) 40 Recoil Reduction 2 Item Schematics ----------------- Hcp. Storage Unit | -10/Materials | Hacked Robot Schematics ------------------ None Fabricated ------------ Nothing Alien Tech Used ----------------- None Achievements -------------- None Challenges ------------ None Game ------ Seed SkeletonElectronAnalyzer Manual? 0 Play Time 00:27:00 Cumulative 133.2 hours Start 2025.03.04 @ 18:55:19 End 2025.03.04 @ 19:21:27 Sessions 1 Manual Loads 0 Difficulty Rogue Special Mode None Game No. 78 Rogue 78 Adventurer 0 Explorer 0 Win Type - Total 3 Types 3/0/0/0/0/0/0/0/0 Lore% 56 Gallery% 67 Achievement% 55 Wizard Run 0 Options --------- Layout 0 ASCII 1 Keyboard 1 Movement Numpad Keybinds 0 Fullscreen 2 Font 20/Terminus Map View 66x50 Zoom Use 0% Tactical HUD 1 Map Filters NONE Filters NONE Steam 1 RUN: e35c0e69-ea15-4420-901a-2d51da62c658